bitfinex/quotes_SOLUSD_20250429
["timestamp","ask_amount","ask_price","bid_price","bid_amount"]
[1745935558882,7.83,148.27,148.21,24.57482963]
[1745935559094,24.57482963,148.25,148.21,24.57482963]
[1745935559291,24.57482963,148.25,148.21,31.32190731]
[1745935559804,24.57482963,148.23,148.19,6.74802245]
[1745935559979,24.57482963,148.22,148.19,6.74802245]
[1745935560175,24.57482963,148.22,148.18,48.98548358]
[1745935560378,24.57482963,148.23,148.19,0.14216157]
[1745935560610,24.57482963,148.24,148.2,24.57482963]
[1745935560976,7.83,148.27,148.21,24.57482963]
[1745935561178,24.57482963,148.26,148.22,24.57482963]
[1745935561493,6.3992,148.3,148.24,24.57482963]
[1745935561694,24.57482963,148.29,148.24,24.57482963]
[1745935561897,24.57482963,148.29,148.24,42.09482963]
[1745935562105,24.57482963,148.28,148.24,42.09482963]
[1745935562408,24.57482963,148.28,148.24,17.52]
[1745935562609,24.57482963,148.25,148.24,17.52]
[1745935563705,37.13144922,148.25,148.2,0.14216157]
[1745935563902,6.74465096,148.27,148.2,6.88975625]
[1745935564093,51.94413594,148.3,148.2,6.88975625]
[1745935564094,37.13144922,148.24,148.2,44.02120547]
[1745935564605,6.74354305,148.29,148.21,0.14216157]
[1745935564803,37.13144922,148.26,148.21,37.27361079]
[1745935565042,37.13144922,148.26,148.22,37.13144922]
[1745935565394,39.1424878,148.3,148.21,44.02052929]
[1745935565594,37.13144922,148.26,148.21,44.02052929]
[1745935565797,37.13144922,148.26,148.22,37.13144922]
[1745935565991,37.13144922,148.27,148.23,37.13144922]
[1745935566193,37.13144922,148.28,148.25,0.14216157]
[1745935566391,43.53064922,148.3,148.26,37.13144922]
[1745935566885,37.13144922,148.29,148.25,54.79361079]
[1745935567811,37.13144922,148.27,148.25,17.52]
[1745935568110,37.13144922,148.26,148.25,17.52]
[1745935568692,13.14247515,148.3,148.25,17.52]
[1745935568897,37.13144922,148.26,148.25,17.52]
[1745935569122,13.14247515,148.3,148.25,17.52]
[1745935569325,37.13144922,148.27,148.25,17.52]
[1745935569613,37.13144922,148.26,148.25,17.52]
[1745935569802,36.86166722,148.27,148.25,17.52]
[1745935570198,37.13144922,148.28,148.25,17.52]
[1745935570402,6.3992,148.3,148.25,17.52]
[1745935570584,37.13144922,148.28,148.25,17.52]
[1745935571091,37.13144922,148.27,148.25,17.52]
[1745935571612,37.13144922,148.28,148.25,17.52]
[1745935571791,37.13144922,148.27,148.25,17.52]
[1745935572117,37.13144922,148.28,148.25,17.52]
[1745935572414,37.13144922,148.29,148.25,61.39656569]
[1745935573224,37.13144922,148.29,148.25,17.52]
[1745935573395,37.13144922,148.28,148.25,17.52]
[1745935573901,37.13144922,148.29,148.25,24.26526622]
[1745935574118,37.13144922,148.3,148.26,37.27361079]
[1745935574602,1.5125,148.31,148.26,37.27361079]
[1745935574808,37.13144922,148.29,148.26,0.14216157]
[1745935576387,37.13144922,148.3,148.26,44.01823021]
[1745935576797,37.13144922,148.29,148.26,6.88678099]
[1745935577015,37.13144922,148.3,148.26,6.88678099]
[1745935577821,37.13144922,148.29,148.26,6.88678099]
[1745935578390,37.13144922,148.3,148.26,6.88678099]
[1745935578991,0.03,148.32,148.26,44.01823021]
[1745935579191,0.03,148.32,148.28,37.13144922]
[1745935579514,0.03,148.32,148.3,37.13144922]
[1745935579691,0.03,148.32,148.31,54.15361079]
[1745935580111,0.03,148.32,148.31,17.02216157]
[1745935580298,0.03,148.32,148.31,54.15361079]
[1745935580633,0.03,148.32,148.31,60.89624446]
[1745935581402,0.03,148.32,148.31,79.54589332]
[1745935581607,0.03,148.32,148.31,23.76479524]
[1745935581807,0.03,148.32,148.31,17.02216157]
[1745935582103,0.03,148.32,148.31,23.76479524]
[1745935582305,0.03,148.32,148.31,17.02216157]
[1745935582710,0.03,148.32,148.31,23.76479524]
[1745935583021,0.03,148.32,148.31,60.89624446]
[1745935583729,0.03,148.32,148.31,48.20259869]
[1745935584109,0.03,148.32,148.31,66.85224755]
[1745935585508,24.43780345,148.41,148.34,26.0]
[1745935585713,24.43780345,148.41,148.36,24.43780345]
[1745935586017,6.3318,148.43,148.39,0.14216157]
[1745935586219,30.76960345,148.43,148.39,0.14216157]
[1745935586728,24.43780345,148.42,148.39,6.88084861]
[1745935587031,30.76960345,148.43,148.39,6.88084861]
[1745935587330,7.8401,148.47,148.4,24.43780345]
[1745935587548,7.8401,148.47,148.41,0.14216157]
[1745935587549,24.43780345,148.44,148.41,0.14216157]
[1745935587731,25.39441195,148.45,148.41,24.43780345]
[1745935588138,24.43780345,148.44,148.4,0.14216157]
[1745935588429,24.43780345,148.44,148.4,24.57996502]
[1745935588631,0.9566085,148.45,148.4,24.57996502]
[1745935588632,25.39441195,148.45,148.4,24.57996502]
[1745935589001,24.43780345,148.44,148.4,24.57996502]
[1745935589201,24.43780345,148.41,148.37,16.88]
[1745935589432,0.9566085,148.45,148.38,24.57996502]
[1745935589729,24.43780345,148.44,148.4,24.43780345]
[1745935589915,24.43780345,148.43,148.39,0.14216157]
[1745935590110,24.43780345,148.43,148.39,24.57996502]
[1745935590436,24.43780345,148.44,148.4,24.43780345]
[1745935590634,24.43780345,148.43,148.39,24.57996502]
[1745935591332,0.9566085,148.45,148.4,24.43780345]
[1745935591534,24.43780345,148.41,148.37,16.88]
[1745935591738,24.43780345,148.4,148.37,16.88]
[1745935592031,24.43780345,148.39,148.37,16.88]
[1745935592240,7.69290709,148.45,148.37,16.88]
[1745935592540,24.43780345,148.39,148.37,16.88]
[1745935592907,7.69290709,148.45,148.37,16.88]
[1745935592908,24.43780345,148.38,148.37,16.88]
[1745935593321,24.43780345,148.39,148.37,16.88]
[1745935593734,24.43780345,148.38,148.37,16.88]
[1745935593911,1.6846682,148.44,148.37,16.88]
[1745935594119,24.43780345,148.39,148.37,16.88]
[1745935594833,24.43780345,148.41,148.37,23.6198141]
[1745935595446,24.43780345,148.41,148.37,48.05761755]
[1745935595624,24.43780345,148.41,148.37,23.6198141]
[1745935595826,24.43780345,148.4,148.37,23.6198141]
[1745935596226,7.6929387,148.45,148.37,23.6198141]
[1745935596543,24.43780345,148.4,148.37,23.6198141]
[1745935596711,24.43780345,148.39,148.37,16.88]
[1745935597547,24.43780345,148.38,148.34,16.86]
[1745935597730,24.43780345,148.35,148.34,16.86]
[1745935602129,6.5371,148.39,148.34,16.86]
[1745935602639,24.43780345,148.35,148.34,16.86]
[1745935604050,13.27617613,148.39,148.34,16.86]
[1745935604420,24.43780345,148.35,148.34,16.86]
[1745935606118,13.27617613,148.39,148.34,16.86]
[1745935606320,24.43780345,148.35,148.34,16.86]
[1745935606531,13.27617613,148.39,148.34,16.86]
[1745935606742,24.43780345,148.35,148.34,16.86]
[1745935608046,6.5371,148.39,148.34,48.03899384]
[1745935608344,24.43780345,148.35,148.34,16.86]
[1745935608940,6.5371,148.39,148.34,16.86]
[1745935609246,24.43780345,148.36,148.34,16.86]
[1745935609850,24.43780345,148.35,148.34,16.86]
[1745935611344,74.8756069,148.35,148.29,16.38]
[1745935611548,24.43780345,148.3,148.29,16.38]
[1745935618362,24.43780345,148.34,148.29,47.5613465]
[1745935618665,24.43780345,148.34,148.3,24.57996502]
[1745935619861,24.43780345,148.33,148.3,0.14216157]
[1745935620025,24.43780345,148.33,148.31,6.74263367]
[1745935620463,24.43780345,148.34,148.31,6.74263367]
[1745935620661,24.43780345,148.33,148.31,6.74263367]
[1745935621665,24.43780345,148.32,148.29,16.38]
[1745935621961,24.43780345,148.3,148.29,16.38]
[1745935622160,24.43780345,148.31,148.29,23.1234497]
[1745935622530,24.43780345,148.32,148.29,23.1234497]
[1745935622747,24.43780345,148.3,148.29,16.38]
[1745935622954,1.68565544,148.36,148.29,16.38]
[1745935623153,24.43780345,148.32,148.29,16.38]
[1745935624465,24.43780345,148.31,148.29,16.38]
[1745935624661,24.43780345,148.3,148.29,16.38]
[1745935625756,24.43780345,148.3,148.26,0.063]
[1745935625757,32.45650345,148.3,148.26,0.063]
[1745935625962,24.43780345,148.27,148.26,0.063]
[1745935628149,1.68638907,148.29,148.26,0.063]
[1745935628367,24.43780345,148.27,148.26,0.063]
[1745935628943,48.8756069,148.27,148.26,0.063]
[1745935629270,24.43780345,148.27,148.26,0.063]
[1745935631751,1.5172,148.35,148.31,24.43780345]
[1745935631955,1.5172,148.35,148.29,16.38]
[1745935631956,24.43780345,148.34,148.3,24.43780345]
[1745935632357,24.43780345,148.34,148.31,6.74263367]
[1745935632759,24.43780345,148.37,148.32,24.43780345]
[1745935632959,6.4064,148.38,148.31,31.18043712]
[1745935632960,24.43780345,148.35,148.31,31.18043712]
[1745935633944,24.43780345,148.35,148.31,6.74263367]
[1745935634260,24.43780345,148.34,148.3,31.32285512]
[1745935635450,24.43780345,148.33,148.29,47.56115218]
[1745935636174,24.43780345,148.3,148.29,16.38]
[1745935636345,24.43780345,148.31,148.29,16.38]
[1745935636871,24.43780345,148.3,148.29,16.38]
[1745935638469,32.86718532,148.3,148.26,0.063]
[1745935638779,24.43780345,148.27,148.26,0.063]
[1745935639281,26.12434114,148.27,148.26,0.063]
[1745935639452,50.56214459,148.27,148.26,0.063]
[1745935640671,57.30659727,148.27,148.26,0.063]
[1745935640852,50.56214459,148.27,148.26,0.063]
[1745935641280,26.12434114,148.27,148.26,0.063]
[1745935642456,50.56214459,148.27,148.26,0.063]
[1745935643141,57.44875884,148.27,148.26,0.063]
[1745935643345,57.30659727,148.27,148.26,0.063]
[1745935643572,57.44875884,148.27,148.26,0.063]
[1745935645071,0.14216157,148.26,148.23,0.063]
[1745935645272,30.55360345,148.24,148.23,0.063]
[1745935646683,37.29942104,148.24,148.23,0.063]
[1745935647301,18.79181043,148.23,148.2,0.063]
[1745935647619,18.79181043,148.23,148.17,0.063]
[1745935647620,26.0,148.2,148.17,0.063]
[1745935647746,24.43780345,148.18,148.17,0.063]
[1745935650174,1.6873943,148.21,148.17,0.063]
[1745935650473,24.43780345,148.18,148.17,0.063]
[1745935652291,6.1158,148.24,148.17,24.50080345]
[1745935652590,24.43780345,148.23,148.19,24.43780345]
[1745935652766,24.43780345,148.22,148.18,24.43780345]
[1745935653647,24.43780345,148.22,148.17,0.063]
[1745935653878,24.43780345,148.19,148.17,0.063]
[1745935654188,9.99743743,148.25,148.17,0.063]
[1745935654189,24.43780345,148.18,148.17,0.063]
[1745935655206,71.65265426,148.25,148.17,0.063]
[1745935655405,24.43780345,148.18,148.17,0.063]
[1745935656387,24.43780345,148.19,148.17,0.063]
[1745935657701,6.74627268,148.23,148.17,0.063]
[1745935657906,24.43780345,148.19,148.17,0.063]
[1745935660402,24.43780345,148.22,148.18,31.18621337]
[1745935661892,6.3035,148.28,148.19,0.14216157]
[1745935662194,24.43780345,148.28,148.24,24.43780345]
[1745935662405,24.43780345,148.28,148.23,31.18378523]
[1745935663200,24.43780345,148.27,148.22,0.14216157]
[1745935663382,24.43780345,148.24,148.21,6.74718305]
[1745935663596,24.43780345,148.24,148.2,40.43780345]
[1745935663597,24.43780345,148.22,148.2,16.0]
[1745935663801,24.43780345,148.21,148.2,16.0]
[1745935668111,24.43780345,148.21,148.17,0.063]
[1745935668296,24.43780345,148.18,148.17,0.063]
[1745935668496,1.68735946,148.21,148.17,0.063]
[1745935668497,24.43780345,148.19,148.17,6.81200452]
[1745935668809,24.43780345,148.2,148.17,6.81200452]
[1745935669403,24.43780345,148.19,148.17,0.063]
[1745935671219,24.43780345,148.19,148.17,6.81186156]
[1745935671413,24.43780345,148.2,148.17,6.81186156]
[1745935671600,24.43780345,148.2,148.17,0.063]
[1745935671802,8.43372609,148.23,148.17,0.063]
[1745935672020,24.43780345,148.19,148.17,0.063]
[1745935672198,24.43780345,148.18,148.17,0.063]
[1745935672718,24.43780345,148.19,148.17,0.063]
[1745935675022,1.68734787,148.23,148.17,0.063]
[1745935675319,24.43780345,148.2,148.17,0.063]
[1745935675928,24.43780345,148.19,148.17,0.063]
[1745935676110,8.43368465,148.23,148.17,0.063]
[1745935676111,24.43780345,148.18,148.17,0.063]
[1745935677525,24.43780345,148.19,148.17,0.063]
[1745935678929,24.43780345,148.2,148.17,0.063]
[1745935679943,24.43780345,148.19,148.17,0.063]
[1745935680336,24.43780345,148.2,148.17,0.063]
[1745935681850,1.68734787,148.23,148.17,6.81200452]
[1745935682058,24.43780345,148.2,148.17,6.81200452]
[1745935682650,24.43780345,148.2,148.17,0.063]
[1745935683033,24.43780345,148.19,148.17,0.063]
[1745935683240,24.43780345,148.18,148.17,0.063]
[1745935684835,31.18635251,148.18,148.17,0.063]
[1745935685032,24.43780345,148.18,148.17,0.063]
[1745935686049,24.57996502,148.18,148.17,0.063]
[1745935686252,38.88475251,148.18,148.17,0.063]
[1745935686455,32.13620345,148.18,148.17,0.063]
[1745935687175,27.68747391,148.19,148.17,0.063]
[1745935687472,50.43780345,148.18,148.17,0.063]
[1745935689086,1.6167,148.22,148.17,24.50080345]
[1745935689262,24.43780345,148.21,148.17,24.50080345]
[1745935689576,24.43780345,148.21,148.17,40.48080345]
[1745935689877,24.43780345,148.22,148.19,6.74809366]
[1745935690044,24.43780345,148.24,148.19,31.18589711]
[1745935690255,24.43780345,148.24,148.2,24.43780345]
[1745935690545,6.5563,148.25,148.2,24.43780345]
[1745935690546,24.43780345,148.25,148.2,24.43780345]
[1745935691969,24.43780345,148.25,148.21,6.74718305]
[1745935692171,24.43780345,148.23,148.19,24.43780345]
[1745935692354,24.43780345,148.24,148.19,31.1857394]
[1745935692676,24.43780345,148.24,148.2,24.43780345]
[1745935693585,0.03,148.26,148.17,22.79181058]
[1745935693586,24.43780345,148.21,148.17,22.79181058]
[1745935693784,24.43780345,148.2,148.17,16.043]
[1745935694263,24.43780345,148.19,148.17,16.043]
[1745935694647,24.43780345,148.18,148.17,16.043]
[1745935695779,24.43780345,148.2,148.17,22.79195043]
[1745935696871,24.43780345,148.18,148.17,16.043]
[1745935698048,24.43780345,148.19,148.17,16.043]
[1745935698249,24.43780345,148.2,148.17,22.79189023]
[1745935698978,24.43780345,148.2,148.17,16.043]
[1745935699157,24.43780345,148.19,148.17,16.043]
[1745935699361,6.5161,148.22,148.17,16.043]
[1745935699551,24.43780345,148.2,148.17,16.043]
[1745935699749,24.43780345,148.19,148.17,16.043]
[1745935699956,24.43780345,148.18,148.17,16.043]
[1745935700173,24.43780345,148.19,148.17,16.043]
[1745935700378,6.5161,148.22,148.17,16.043]
[1745935700573,24.43780345,148.18,148.17,16.043]
[1745935701771,24.43780345,148.18,148.17,0.063]
[1745935702088,31.18635251,148.18,148.17,0.063]
[1745935703288,57.32851408,148.18,148.17,0.063]
[1745935703595,26.14216157,148.15,148.14,0.063]
[1745935703765,52.2680955,148.15,148.14,0.063]
[1745935704083,70.91774436,148.15,148.14,0.063]
[1745935705484,77.66765998,148.15,148.14,0.063]
[1745935706285,52.12593393,148.15,148.14,0.063]
[1745935706692,6.5475,148.17,148.14,0.063]
[1745935706863,24.43780345,148.18,148.14,24.50080345]
[1745935707063,24.43780345,148.19,148.15,24.43780345]
[1745935707800,24.43780345,148.2,148.16,24.43780345]
[1745935707976,26.0,148.22,148.16,24.43780345]
[1745935708298,24.43780345,148.21,148.16,24.43780345]
[1745935708909,24.43780345,148.23,148.19,24.43780345]
[1745935709277,24.43780345,148.23,148.18,24.43780345]
[1745935709485,32.3877,148.25,148.17,0.14216157]
[1745935709812,24.43780345,148.25,148.21,24.43780345]
[1745935710200,0.03,148.26,148.21,24.43780345]
[1745935710485,24.46780345,148.26,148.21,24.43780345]
[1745935710675,24.43780345,148.25,148.21,24.43780345]
[1745935711301,24.43780345,148.25,148.2,40.37780345]
[1745935711479,27.71668458,148.26,148.2,15.94]
[1745935711680,27.71668458,148.26,148.2,40.37780345]
[1745935711880,24.43780345,148.24,148.2,47.12542326]
[1745935712190,24.43780345,148.25,148.2,47.12542326]
[1745935712889,24.43780345,148.25,148.21,24.43780345]
[1745935713798,26.03,148.26,148.22,31.18453128]
[1745935713799,0.03,148.26,148.22,31.18453128]
[1745935714101,24.46780345,148.26,148.22,31.18453128]
[1745935716523,24.46780345,148.26,148.22,0.14216157]
[1745935716818,0.03,148.26,148.24,24.57996502]
[1745935716996,0.03,148.26,148.25,24.43780345]
[1745935717514,0.03,148.26,148.25,24.57996502]
[1745935718488,0.03,148.26,148.23,31.18407613]
[1745935719010,24.46780345,148.26,148.22,31.32657707]
[1745935719224,24.43780345,148.23,148.2,15.94]
[1745935719389,0.03,148.26,148.2,15.94]
[1745935719390,24.43780345,148.22,148.2,15.94]
[1745935719789,24.43780345,148.23,148.2,15.94]
[1745935720315,24.43780345,148.22,148.2,15.94]
[1745935721793,24.43780345,148.21,148.2,15.94]
[1745935722124,0.14216157,148.2,148.15,15.94]
[1745935722631,24.43780345,148.17,148.15,15.94]
[1745935722828,24.43780345,148.16,148.15,15.94]
[1745935726305,24.43780345,148.16,148.13,0.063]
[1745935726506,24.43780345,148.15,148.13,0.063]
[1745935727335,8.16479682,148.18,148.13,0.063]
[1745935727507,24.43780345,148.15,148.13,0.063]
[1745935728830,24.43780345,148.17,148.13,24.50080345]
[1745935729010,6.4772,148.18,148.13,24.50080345]
[1745935729415,6.3319,148.22,148.16,24.43780345]
[1745935729636,24.43780345,148.21,148.16,40.33780345]
[1745935730435,24.43780345,148.21,148.17,24.43780345]
[1745935730751,24.43780345,148.22,148.17,24.43780345]
[1745935731446,24.43780345,148.22,148.18,6.74854906]
[1745935731746,29.22124782,148.24,148.2,24.43780345]
[1745935731747,24.43780345,148.24,148.2,24.43780345]
[1745935732245,0.03,148.26,148.21,24.43780345]
[1745935732451,24.43780345,148.25,148.21,24.43780345]
[1745935732753,24.43780345,148.24,148.2,24.43780345]
[1745935733551,24.43780345,148.25,148.21,24.43780345]
[1745935733924,24.43780345,148.24,148.2,31.18544177]
[1745935734255,24.43780345,148.25,148.21,24.43780345]
[1745935734452,0.03,148.26,148.22,24.57996502]
[1745935734624,0.03,148.26,148.24,24.43780345]
[1745935734835,0.03,148.26,148.22,16.04216157]
[1745935735032,0.03,148.26,148.25,24.43780345]
[1745935736523,0.03,148.26,148.25,31.18316601]
[1745935737253,0.03,148.26,148.25,31.32532758]
[1745935738328,0.03,148.26,148.25,6.88752413]
[1745935738855,0.03,148.26,148.25,31.32532758]
[1745935739056,0.03,148.26,148.25,24.57996502]
[1745935739355,0.03,148.26,148.25,31.32532758]
[1745935739935,0.03,148.26,148.22,32.76637842]
[1745935739936,0.03,148.26,148.24,6.74570875]
[1745935740141,0.03,148.26,148.25,31.18316601]
[1745935740348,0.03,148.26,148.25,31.32532758]
[1745935741766,0.03,148.26,148.25,24.43780345]
[1745935741934,0.03,148.26,148.25,31.18316601]
[1745935744655,0.03,148.26,148.24,31.18348566]
[1745935745334,24.46780345,148.26,148.23,6.88827602]
[1745935745538,24.46780345,148.26,148.22,47.0843925]
[1745935745748,24.43780345,148.23,148.22,15.9]
[1745935746161,24.43780345,148.23,148.19,6.74802937]
[1745935746363,24.43780345,148.2,148.17,15.9]
[1745935746972,24.43780345,148.19,148.17,15.9]
[1745935747337,24.43780345,148.18,148.17,15.9]
[1745935747567,24.43780345,148.18,148.14,0.063]
[1745935747775,24.43780345,148.16,148.14,0.063]
[1745935748257,24.43780345,148.15,148.14,0.063]
[1745935749943,6.3399,148.17,148.14,0.063]
[1745935750155,24.43780345,148.16,148.14,0.063]
[1745935750974,24.43780345,148.15,148.14,0.063]
[1745935751171,6.3399,148.17,148.14,0.063]
[1745935751383,24.43780345,148.15,148.14,0.063]
[1745935751872,43.22961388,148.15,148.14,0.063]
[1745935752284,43.22961388,148.15,148.13,0.063]
[1745935752285,18.79181043,148.14,148.13,0.063]
[1745935752578,52.26855878,148.14,148.13,0.063]
[1745935752947,59.01893005,148.14,148.13,0.063]
[1745935753165,52.26855878,148.14,148.13,0.063]
[1745935753973,0.14216157,148.16,148.13,0.063]
[1745935754180,30.77770345,148.17,148.13,24.50080345]
[1745935754477,24.43780345,148.17,148.13,24.50080345]
[1745935754777,24.43780345,148.15,148.13,0.063]
[1745935755157,24.43780345,148.16,148.13,0.063]
[1745935755358,24.43780345,148.15,148.13,0.063]
[1745935755552,24.43780345,148.14,148.13,0.063]
[1745935757577,24.43780345,148.15,148.13,0.063]
[1745935757778,26.0,148.16,148.13,0.063]
[1745935757981,24.43780345,148.15,148.13,0.063]
[1745935759089,24.43780345,148.14,148.13,0.063]
[1745935761485,24.43780345,148.15,148.13,0.063]
[1745935761688,24.43780345,148.14,148.13,0.063]
[1745935764994,24.57996502,148.14,148.13,0.063]
[1745935765183,58.22178271,148.14,148.13,0.063]
[1745935765504,84.29988616,148.14,148.13,0.063]
[1745935766087,44.64964886,148.12,148.11,0.063]
[1745935766288,95.35603337,148.12,148.11,0.063]
[1745935766991,52.26858106,148.12,148.11,0.063]
[1745935767184,50.43780345,148.12,148.11,0.063]
[1745935767875,52.12612435,148.12,148.11,0.063]
[1745935768280,50.43780345,148.12,148.11,0.063]
[1745935768576,81.76905121,148.12,148.11,0.063]
[1745935768809,100.41870007,148.12,148.11,0.063]
[1745935768975,50.57996502,148.12,148.11,0.063]
[1745935769296,75.01776847,148.12,148.11,0.063]
[1745935769501,50.57996502,148.12,148.11,0.063]
[1745935770397,57.33124776,148.12,148.11,0.063]
[1745935771028,50.57996502,148.12,148.11,0.063]
[1745935771728,81.76905121,148.12,148.11,0.063]
[1745935771900,57.33124776,148.12,148.11,0.063]
[1745935772434,50.57996502,148.12,148.11,0.063]
[1745935773311,81.76905121,148.12,148.11,0.063]
[1745935773515,75.01776847,148.12,148.11,0.063]
[1745935773699,50.57996502,148.12,148.11,0.063]
[1745935773899,50.43780345,148.12,148.11,0.063]
[1745935774902,26.0,148.12,148.11,0.063]
[1745935775207,50.43780345,148.12,148.11,0.063]
[1745935775899,26.0,148.12,148.11,0.063]
[1745935776219,50.43780345,148.12,148.11,0.063]
[1745935777623,74.8756069,148.12,148.11,0.063]
[1745935777796,50.43780345,148.12,148.11,0.063]
[1745935780526,81.62688964,148.12,148.11,0.063]
[1745935781406,57.18908619,148.12,148.11,0.063]
[1745935781605,50.43780345,148.12,148.11,0.063]
[1745935782242,26.0,148.12,148.11,0.063]
[1745935782402,50.43780345,148.12,148.11,0.063]
[1745935784798,26.0,148.15,148.11,0.063]
[1745935785018,1.68820206,148.17,148.11,24.50080345]
[1745935785233,7.7918,148.18,148.12,24.43780345]
[1745935785234,24.43780345,148.16,148.12,24.43780345]
[1745935785436,24.43780345,148.18,148.11,0.063]
[1745935785747,24.43780345,148.17,148.11,0.20516157]
[1745935785907,24.43780345,148.15,148.11,24.64296502]
[1745935786230,24.43780345,148.14,148.11,0.063]
[1745935786433,24.43780345,148.13,148.11,0.063]
[1745935786622,24.43780345,148.12,148.11,0.063]
[1745935787304,26.0,148.15,148.11,0.063]
[1745935787518,24.43780345,148.13,148.11,0.063]
[1745935788742,24.43780345,148.12,148.11,0.063]
[1745935791251,31.18908619,148.12,148.11,0.063]
[1745935792947,74.41870007,148.12,148.11,0.063]
[1745935793631,26.0,148.09,148.08,0.063]
[1745935793827,70.91866215,148.09,148.08,0.063]
[1745935794637,77.67131256,148.09,148.08,0.063]
[1745935796326,58.87950213,148.09,148.08,0.063]
[1745935796529,8.44017721,148.12,148.08,0.063]
[1745935796731,24.43780345,148.11,148.08,0.063]
[1745935796949,24.43780345,148.09,148.08,0.063]
[1745935799164,50.43780345,148.09,148.08,0.063]
[1745935799340,24.43780345,148.09,148.08,0.063]
[1745935799861,27.68854195,148.11,148.08,0.063]
[1745935799862,26.1263454,148.11,148.08,0.063]
[1745935800065,24.43780345,148.12,148.08,24.50080345]
[1745935800362,24.43780345,148.11,148.08,0.063]
[1745935800579,24.43780345,148.12,148.08,24.50080345]
[1745935801150,24.43780345,148.12,148.08,31.25382564]
[1745935801451,24.43780345,148.15,148.11,24.43780345]
[1745935801650,24.43780345,148.15,148.11,40.29780345]
[1745935802258,26.0,148.16,148.11,40.29780345]
[1745935802587,24.43780345,148.14,148.11,15.86]
[1745935802757,24.43780345,148.13,148.11,15.86]
[1745935803177,24.43780345,148.12,148.11,15.86]
[1745935804351,50.43780345,148.12,148.11,15.86]
[1745935806076,81.62688964,148.12,148.08,0.063]
[1745935806278,24.43780345,148.09,148.08,0.063]
[1745935808359,57.19045386,148.09,148.08,0.063]
[1745935808551,75.98226429,148.09,148.08,0.063]
[1745935810880,49.98226429,148.09,148.08,0.063]
[1745935811090,51.76552586,148.09,148.08,0.063]
[1745935812285,51.62336429,148.09,148.08,0.063]
[1745935813483,24.43780345,148.09,148.08,0.063]
[1745935813689,32.87924658,148.09,148.08,0.063]
[1745935813995,77.67105701,148.09,148.08,0.063]
[1745935818410,1.68879272,148.09,148.08,0.063]
[1745935818595,1.68862196,148.1,148.08,0.063]
[1745935818902,20.33815668,148.13,148.08,0.063]
[1745935819062,24.43780345,148.12,148.08,24.50080345]
[1745935819269,50.43780345,148.13,148.09,24.43780345]
[1745935819475,33.70440686,148.16,148.09,24.43780345]
[1745935819777,24.43780345,148.15,148.11,24.43780345]
[1745935820289,24.43780345,148.14,148.1,24.43780345]
[1745935820694,24.43780345,148.13,148.09,24.43780345]
[1745935821648,24.43780345,148.1,148.08,0.063]
[1745935822097,24.43780345,148.09,148.08,0.063]
[1745935826026,26.12656035,148.09,148.08,0.063]
[1745935826798,77.67102119,148.09,148.08,0.063]
[1745935827030,70.91837078,148.09,148.08,0.063]
[1745935828254,27.6887569,148.09,148.08,0.063]
[1745935828549,52.12656035,148.09,148.08,0.063]
[1745935835143,58.87921076,148.09,148.08,0.063]
[1745935838447,26.12627788,148.09,148.08,0.063]
[1745935838844,24.43780345,148.09,148.08,0.063]
[1745935839043,26.126307,148.09,148.08,0.063]
[1745935841068,32.87895741,148.09,148.08,0.063]
[1745935841240,51.67076784,148.09,148.08,0.063]
[1745935841857,77.67076784,148.09,148.08,0.063]
[1745935845764,51.67076784,148.09,148.08,0.063]
[1745935846854,52.126307,148.09,148.08,0.063]
[1745935847052,50.43780345,148.09,148.08,0.063]
[1745935847260,26.12648054,148.11,148.08,0.063]
[1745935847565,50.43780345,148.11,148.08,0.063]
[1745935847747,24.43780345,148.11,148.08,0.063]
[1745935848852,24.43780345,148.12,148.08,0.063]
[1745935849071,1.83043254,148.14,148.08,24.50080345]
[1745935849072,24.43780345,148.13,148.08,24.50080345]
[1745935849266,50.43780345,148.13,148.08,24.50080345]